[Event "*** Titled Tuesday Blitz"]
[Site "Chess.com"]
[Date "2020.10.20"]
[Round "11"]
[White "sergeikim"]
[Black "gliglu"]
[Result "0-1"]
[WhiteElo "2521"]
[BlackElo "2374"]
[TimeControl "180+1"]
[EndTime "12:10:12 PDT"]
[Termination "gliglu won on time"]

1. d4 {[%clk 0:03:00.9]} 1... Nf6 {[%clk 0:02:58.8]} 2. c4 {[%clk 0:03:00.6]}
2... e6 {[%clk 0:02:59]} 3. Nc3 {[%clk 0:03:00.4]} 3... Bb4 {[%clk 0:02:58.6]}
4. Qc2 {[%clk 0:02:59.5]} 4... O-O {[%clk 0:02:58]} 5. a3 {[%clk 0:02:59.3]}
5... Bxc3+ {[%clk 0:02:57.3]} 6. Qxc3 {[%clk 0:02:59.9]} 6... d6 {[%clk
0:02:57.4]} 7. Nf3 {[%clk 0:02:59.7]} 7... Nbd7 {[%clk 0:02:57.2]} 8. g3 {[%clk
0:02:59.5]} 8... b6 {[%clk 0:02:57.1]} 9. Bg2 {[%clk 0:02:59.3]} 9... Bb7 {[%clk
0:02:57]} 10. O-O {[%clk 0:02:58.4]} 10... c5 {[%clk 0:02:57.1]} 11. dxc5 {[%clk
0:02:55.9]} 11... dxc5 {[%clk 0:02:55.2]} 12. Rd1 {[%clk 0:02:54.3]} 12... Qe7
{[%clk 0:02:54.5]} 13. b3 {[%clk 0:02:53.5]} 13... Rfd8 {[%clk 0:02:51.1]} 14.
Bb2 {[%clk 0:02:52.4]} 14... Nf8 {[%clk 0:02:49.4]} 15. Bh3 {[%clk 0:02:45.3]}
15... Ng6 {[%clk 0:02:41.8]} 16. Ne5 {[%clk 0:02:42.9]} 16... Rxd1+ {[%clk
0:02:32.4]} 17. Rxd1 {[%clk 0:02:40.1]} 17... Rd8 {[%clk 0:02:32]} 18. Re1
{[%clk 0:02:19.8]} 18... Qd6 {[%clk 0:02:17.1]} 19. Nxg6 {[%clk 0:02:14.8]}
19... hxg6 {[%clk 0:02:15.7]} 20. f3 {[%clk 0:02:04.4]} 20... Qd2 {[%clk
0:02:06]} 21. Bg2 {[%clk 0:01:40]} 21... Qd6 {[%clk 0:01:40.7]} 22. Kf2 {[%clk
0:01:29.7]} 22... Qc6 {[%clk 0:01:35.8]} 23. Kf1 {[%clk 0:01:18.7]} 23... Rd4
{[%clk 0:01:29.4]} 24. Qc2 {[%clk 0:01:16.7]} 24... Rd7 {[%clk 0:01:28.1]} 25.
Qc3 {[%clk 0:01:16.5]} 25... Qd6 {[%clk 0:01:24.1]} 26. Qe3 {[%clk 0:01:11.8]}
26... Qd2 {[%clk 0:01:20.9]} 27. Qc3 {[%clk 0:01:10.9]} 27... Qxc3 {[%clk
0:01:16.4]} 28. Bxc3 {[%clk 0:01:10.3]} 28... Kf8 {[%clk 0:01:16.6]} 29. Rc1
{[%clk 0:01:07.5]} 29... Ke7 {[%clk 0:01:15.9]} 30. Ke1 {[%clk 0:01:05.2]} 30...
Ne8 {[%clk 0:01:14.3]} 31. Bf1 {[%clk 0:00:59.5]} 31... f6 {[%clk 0:01:13.3]}
32. f4 {[%clk 0:00:58.1]} 32... Nd6 {[%clk 0:01:11.9]} 33. b4 {[%clk 0:00:53.7]}
33... Ne4 {[%clk 0:01:11]} 34. Ba1 {[%clk 0:00:42.8]} 34... Rd2 {[%clk
0:01:02.8]} 35. Bg2 {[%clk 0:00:34.9]} 35... Ra2 {[%clk 0:01:02.3]} 36. Bxe4
{[%clk 0:00:24.2]} 36... Bxe4 {[%clk 0:01:01]} 37. bxc5 {[%clk 0:00:19.4]} 37...
bxc5 {[%clk 0:01:00.3]} 38. Bc3 {[%clk 0:00:19.6]} 38... Rxa3 {[%clk 0:00:59.3]}
39. Kd2 {[%clk 0:00:19.7]} 39... Ra2+ {[%clk 0:00:58.6]} 40. Ke3 {[%clk
0:00:19.2]} 40... Bf5 {[%clk 0:00:56.8]} 41. Ra1 {[%clk 0:00:18.3]} 41... Rxa1
{[%clk 0:00:54]} 42. Bxa1 {[%clk 0:00:18.8]} 42... Kd6 {[%clk 0:00:53.9]} 43.
Bc3 {[%clk 0:00:18.4]} 43... Kc6 {[%clk 0:00:53.4]} 44. Kf3 {[%clk 0:00:16.9]}
44... Bb1 {[%clk 0:00:52]} 45. Ke3 {[%clk 0:00:16.1]} 45... Kd6 {[%clk
0:00:51.5]} 46. g4 {[%clk 0:00:15.4]} 46... Ke7 {[%clk 0:00:46.7]} 47. g5 {[%clk
0:00:15]} 47... Kf7 {[%clk 0:00:46.5]} 48. h4 {[%clk 0:00:14.1]} 48... Ke7
{[%clk 0:00:45.2]} 49. Kd2 {[%clk 0:00:13.5]} 49... a6 {[%clk 0:00:39.4]} 50.
Bb2 {[%clk 0:00:12.4]} 50... a5 {[%clk 0:00:38]} 51. Kc3 {[%clk 0:00:11]} 51...
a4 {[%clk 0:00:35.8]} 52. Ba3 {[%clk 0:00:08.9]} 52... Kd6 {[%clk 0:00:35]} 53.
Kb2 {[%clk 0:00:08.1]} 53... Be4 {[%clk 0:00:33.7]} 54. Kc3 {[%clk 0:00:07.9]}
54... Bf5 {[%clk 0:00:30.3]} 55. e3 {[%clk 0:00:07.7]} 55... Bg4 {[%clk
0:00:26.1]} 56. Kd2 {[%clk 0:00:07.6]} 56... e5 {[%clk 0:00:25.3]} 57. Kc3
{[%clk 0:00:07.1]} 57... Be6 {[%clk 0:00:23.2]} 58. Kd3 {[%clk 0:00:06.6]} 58...
exf4 {[%clk 0:00:18.6]} 59. exf4 {[%clk 0:00:06.2]} 59... Bd7 {[%clk 0:00:18.3]}
60. Kc3 {[%clk 0:00:05.6]} 60... Ke6 {[%clk 0:00:18]} 61. Bxc5 {[%clk
0:00:03.3]} 61... Kf5 {[%clk 0:00:18.9]} 62. Bf8 {[%clk 0:00:02.8]} 62... Kxf4
{[%clk 0:00:18]} 63. Bxg7 {[%clk 0:00:03.1]} 63... fxg5 {[%clk 0:00:18.2]} 64.
hxg5 {[%clk 0:00:03]} 64... Kxg5 {[%clk 0:00:17]} 65. Bf8 {[%clk 0:00:03.4]}
65... Kf5 {[%clk 0:00:17.3]} 66. Kd3 {[%clk 0:00:03.4]} 66... g5 {[%clk
0:00:17.4]} 67. Ke3 {[%clk 0:00:03.4]} 67... g4 {[%clk 0:00:17.1]} 68. Kf2
{[%clk 0:00:03.5]} 68... Kf4 {[%clk 0:00:16.6]} 69. Bd6+ {[%clk 0:00:02.6]}
69... Ke4 {[%clk 0:00:16.5]} 70. Kg3 {[%clk 0:00:03]} 70... Kd4 {[%clk
0:00:16.5]} 71. c5 {[%clk 0:00:03.5]} 71... Kd5 {[%clk 0:00:16.5]} 72. Kf4
{[%clk 0:00:02.4]} 72... Kc6 {[%clk 0:00:15]} 73. Kg3 {[%clk 0:00:01.7]} 73...
a3 {[%clk 0:00:15.1]} 74. Be5 {[%clk 0:00:01.5]} 74... a2 {[%clk 0:00:14.8]} 0-1

[Event "*** Titled Tuesday Blitz"]
[Site "Chess.com"]
[Date "2020.10.20"]
[Round "11"]
[White "mshuaau0"]
[Black "AurumO"]
[Result "1/2-1/2"]
[WhiteElo "2196"]
[BlackElo "1977"]
[TimeControl "180+1"]
[EndTime "12:10:15 PDT"]
[Termination "Game drawn by repetition"]

1. e4 {[%clk 0:03:00.9]} 1... c5 {[%clk 0:02:59.4]} 2. Nf3 {[%clk 0:03:00.5]}
2... Nc6 {[%clk 0:02:59.7]} 3. Nc3 {[%clk 0:03:01.1]} 3... g6 {[%clk 0:02:59.5]}
4. Bc4 {[%clk 0:03:01.3]} 4... Bg7 {[%clk 0:02:59.9]} 5. d3 {[%clk 0:03:00.8]}
5... e6 {[%clk 0:03:00.4]} 6. a4 {[%clk 0:03:00.6]} 6... Nge7 {[%clk 0:03:00.8]}
7. O-O {[%clk 0:03:00.2]} 7... O-O {[%clk 0:03:01.5]} 8. Bg5 {[%clk 0:02:59.6]}
8... h6 {[%clk 0:03:00.2]} 9. Bh4 {[%clk 0:02:59.4]} 9... g5 {[%clk 0:03:00.1]}
10. Bg3 {[%clk 0:02:58.5]} 10... d5 {[%clk 0:02:59.8]} 11. exd5 {[%clk
0:02:58.1]} 11... exd5 {[%clk 0:03:00.7]} 12. Ba2 {[%clk 0:02:57.7]} 12... Bg4
{[%clk 0:03:01.1]} 13. h3 {[%clk 0:02:56.9]} 13... Bh5 {[%clk 0:03:00.8]} 14.
Re1 {[%clk 0:02:54.8]} 14... Nd4 {[%clk 0:02:57.1]} 15. Rxe7 {[%clk 0:02:43.5]}
15... Qxe7 {[%clk 0:02:55.8]} 16. Nxd5 {[%clk 0:02:43.4]} 16... Qd7 {[%clk
0:02:53.6]} 17. Ne5 {[%clk 0:02:32.1]} 17... Bxd1 {[%clk 0:02:29.3]} 18. Nxd7
{[%clk 0:02:31.3]} 18... Rfd8 {[%clk 0:02:20.3]} 19. N7f6+ {[%clk 0:02:14.8]}
19... Bxf6 {[%clk 0:02:19.1]} 20. Nxf6+ {[%clk 0:02:14.9]} 20... Kg7 {[%clk
0:02:19.8]} 21. Nh5+ {[%clk 0:02:14.7]} 21... Kg6 {[%clk 0:02:18.7]} 22. Rxd1
{[%clk 0:02:09.2]} 22... Rd7 {[%clk 0:02:00.3]} 23. c3 {[%clk 0:01:46]} 23...
Nf5 {[%clk 0:01:47.7]} 24. Nf4+ {[%clk 0:01:44.6]} 24... gxf4 {[%clk 0:01:45.9]}
25. Bxf4 {[%clk 0:01:45.5]} 25... Rad8 {[%clk 0:01:42.3]} 26. Bb1 {[%clk
0:01:45.1]} 26... Ne7 {[%clk 0:01:29.8]} 27. Re1 {[%clk 0:01:37.9]} 27... Nd5
{[%clk 0:01:26.9]} 28. Bd2 {[%clk 0:01:23.8]} 28... Kg7 {[%clk 0:01:19.5]} 29.
Re4 {[%clk 0:01:21.1]} 29... Re7 {[%clk 0:01:17.2]} 30. Rg4+ {[%clk 0:01:19.8]}
30... Kh8 {[%clk 0:01:00.1]} 31. Kf1 {[%clk 0:01:01.2]} 31... Rde8 {[%clk
0:00:56]} 32. Rh4 {[%clk 0:00:56.3]} 32... f5 {[%clk 0:00:33.5]} 33. Rxh6+
{[%clk 0:00:50.7]} 33... Kg7 {[%clk 0:00:34]} 34. Rd6 {[%clk 0:00:50]} 34... Nb6
{[%clk 0:00:19.1]} 35. Bh6+ {[%clk 0:00:27.2]} 35... Kf7 {[%clk 0:00:16]} 36.
Ba2+ {[%clk 0:00:25.3]} 36... c4 {[%clk 0:00:15.2]} 37. Be3 {[%clk 0:00:20.4]}
37... f4 {[%clk 0:00:14.8]} 38. Rxb6 {[%clk 0:00:07.8]} 38... fxe3 {[%clk
0:00:14.3]} 39. Bxc4+ {[%clk 0:00:07.3]} 39... Kg7 {[%clk 0:00:13.7]} 40. Rb5
{[%clk 0:00:05.6]} 40... exf2 {[%clk 0:00:12.8]} 41. Kxf2 {[%clk 0:00:05.5]}
41... Re2+ {[%clk 0:00:13]} 42. Kg3 {[%clk 0:00:05.9]} 42... R2e7 {[%clk
0:00:10.4]} 43. Rg5+ {[%clk 0:00:05.5]} 43... Kf6 {[%clk 0:00:09.9]} 44. Rg4
{[%clk 0:00:05.3]} 44... Rg7 {[%clk 0:00:10]} 45. Rxg7 {[%clk 0:00:04.8]} 45...
Kxg7 {[%clk 0:00:10.9]} 46. Bd5 {[%clk 0:00:04.8]} 46... b6 {[%clk 0:00:10.5]}
47. Be4 {[%clk 0:00:04.8]} 47... Rd8 {[%clk 0:00:09.5]} 48. Kf3 {[%clk
0:00:05.1]} 48... a6 {[%clk 0:00:09.3]} 49. g4 {[%clk 0:00:05.6]} 49... b5
{[%clk 0:00:09.9]} 50. axb5 {[%clk 0:00:06.3]} 50... axb5 {[%clk 0:00:10.8]} 51.
h4 {[%clk 0:00:07.1]} 51... b4 {[%clk 0:00:10.1]} 52. cxb4 {[%clk 0:00:06.7]}
52... Rb8 {[%clk 0:00:10.8]} 53. b3 {[%clk 0:00:05.7]} 53... Rxb4 {[%clk
0:00:11.1]} 54. Bd5 {[%clk 0:00:06]} 54... Rd4 {[%clk 0:00:11.2]} 55. Bc4 {[%clk
0:00:06.1]} 55... Kf6 {[%clk 0:00:11.3]} 56. g5+ {[%clk 0:00:05.7]} 56... Kf5
{[%clk 0:00:10.5]} 57. b4 {[%clk 0:00:06]} 57... Rxh4 {[%clk 0:00:10.1]} 58. b5
{[%clk 0:00:05.5]} 58... Kxg5 {[%clk 0:00:09.8]} 59. b6 {[%clk 0:00:05.9]} 59...
Rh6 {[%clk 0:00:09.7]} 60. b7 {[%clk 0:00:05]} 60... Rb6 {[%clk 0:00:09.6]} 61.
Bd5 {[%clk 0:00:04.9]} 61... Kf6 {[%clk 0:00:09.7]} 62. Ke4 {[%clk 0:00:05.1]}
62... Ke7 {[%clk 0:00:09.8]} 63. Kd4 {[%clk 0:00:05.6]} 63... Kd6 {[%clk
0:00:10.2]} 64. Be4 {[%clk 0:00:04.9]} 64... Rb4+ {[%clk 0:00:09.2]} 65. Kc3
{[%clk 0:00:05.2]} 65... Rb6 {[%clk 0:00:09.3]} 66. Kc4 {[%clk 0:00:05.3]} 66...
Kc7 {[%clk 0:00:08.5]} 67. Kc5 {[%clk 0:00:05.3]} 67... Rb2 {[%clk 0:00:07.5]}
68. Kd4 {[%clk 0:00:05.7]} 68... Kd6 {[%clk 0:00:07.4]} 69. Kc3 {[%clk
0:00:05.1]} 69... Rb1 {[%clk 0:00:06.3]} 70. Kc2 {[%clk 0:00:05.3]} 70... Rb4
{[%clk 0:00:05.9]} 71. Kc3 {[%clk 0:00:05.8]} 71... Rb1 {[%clk 0:00:06.2]} 72.
d4 {[%clk 0:00:06.2]} 72... Rb6 {[%clk 0:00:05.5]} 73. Kc4 {[%clk 0:00:06.1]}
73... Rb2 {[%clk 0:00:04.9]} 74. Kc3 {[%clk 0:00:05.8]} 74... Rb6 {[%clk
0:00:05.2]} 75. Kc4 {[%clk 0:00:05.1]} 75... Rb2 {[%clk 0:00:05.7]} 76. Bf3
{[%clk 0:00:04.9]} 76... Rb6 {[%clk 0:00:05.8]} 77. Be4 {[%clk 0:00:05]} 1/2-1/2

[Event "*** Titled Tuesday Blitz"]
[Site "Chess.com"]
[Date "2020.10.20"]
[Round "11"]
[White "A-S-00"]
[Black "RobPeresian"]
[Result "1/2-1/2"]
[WhiteElo "2304"]
[BlackElo "2410"]
[TimeControl "180+1"]
[EndTime "12:10:44 PDT"]
[Termination "Game drawn by repetition"]

1. d4 {[%clk 0:03:00]} 1... d5 {[%clk 0:02:58.4]} 2. Nf3 {[%clk 0:03:00.1]} 2...
Nf6 {[%clk 0:02:58]} 3. c4 {[%clk 0:03:00.3]} 3... c6 {[%clk 0:02:58.3]} 4. g3
{[%clk 0:03:00.2]} 4... dxc4 {[%clk 0:02:57.8]} 5. Bg2 {[%clk 0:03:00.2]} 5...
b5 {[%clk 0:02:58.4]} 6. O-O {[%clk 0:02:59.9]} 6... Bb7 {[%clk 0:02:58.9]} 7.
b3 {[%clk 0:03:00.2]} 7... cxb3 {[%clk 0:02:58.7]} 8. Qxb3 {[%clk 0:03:00.4]}
8... e6 {[%clk 0:02:59]} 9. a4 {[%clk 0:02:59.8]} 9... a6 {[%clk 0:02:58.9]} 10.
Nc3 {[%clk 0:02:58.4]} 10... Nbd7 {[%clk 0:02:58.5]} 11. Rd1 {[%clk 0:02:56.3]}
11... b4 {[%clk 0:02:50]} 12. a5 {[%clk 0:02:47.6]} 12... Qc8 {[%clk 0:02:24]}
13. Na4 {[%clk 0:02:45.9]} 13... c5 {[%clk 0:02:16.8]} 14. dxc5 {[%clk
0:02:44.8]} 14... Nxc5 {[%clk 0:02:15.6]} 15. Qxb4 {[%clk 0:02:37.9]} 15... Nxa4
{[%clk 0:02:06.6]} 16. Qxa4+ {[%clk 0:02:37.4]} 16... Bc6 {[%clk 0:02:07.2]} 17.
Qxc6+ {[%clk 0:01:59.6]} 17... Qxc6 {[%clk 0:02:06.6]} 18. Ne5 {[%clk
0:01:59.5]} 18... Qxg2+ {[%clk 0:01:55.6]} 19. Kxg2 {[%clk 0:01:58.9]} 19... Bc5
{[%clk 0:01:49.5]} 20. Ba3 {[%clk 0:01:50.3]} 20... Bxa3 {[%clk 0:01:46.9]} 21.
Rxa3 {[%clk 0:01:50.2]} 21... O-O {[%clk 0:01:47.4]} 22. Rb3 {[%clk 0:01:48.9]}
22... Rfc8 {[%clk 0:01:43.7]} 23. Rb6 {[%clk 0:01:47.6]} 23... h6 {[%clk
0:01:29.5]} 24. Rdd6 {[%clk 0:01:38.6]} 24... Rc5 {[%clk 0:01:27.8]} 25. Nc6
{[%clk 0:01:27.4]} 25... Nd5 {[%clk 0:01:24.1]} 26. Rb7 {[%clk 0:01:24.5]} 26...
Rc8 {[%clk 0:01:20.7]} 27. Rd8+ {[%clk 0:01:21.6]} 27... Rxd8 {[%clk 0:01:20.5]}
28. Nxd8 {[%clk 0:01:21.6]} 28... Rxa5 {[%clk 0:01:17.3]} 29. Nxf7 {[%clk
0:01:19.2]} 29... Ra2 {[%clk 0:01:16.9]} 30. e4 {[%clk 0:01:14.5]} 30... Nf6
{[%clk 0:01:13]} 31. Nd6 {[%clk 0:01:03.8]} 31... Ng4 {[%clk 0:01:12.4]} 32.
Rb8+ {[%clk 0:01:03]} 32... Kh7 {[%clk 0:01:11.7]} 33. Rf8 {[%clk 0:01:02.8]}
33... a5 {[%clk 0:01:10.9]} 34. h3 {[%clk 0:01:00.7]} 34... Nf6 {[%clk 0:01:05]}
35. e5 {[%clk 0:00:58.9]} 35... Nd7 {[%clk 0:01:03.3]} 36. Re8 {[%clk
0:00:56.4]} 36... Nxe5 {[%clk 0:01:02.4]} 37. Rxe6 {[%clk 0:00:56.1]} 37... Nd3
{[%clk 0:01:02.6]} 38. Ne4 {[%clk 0:00:55.9]} 38... a4 {[%clk 0:01:02.2]} 39.
Ra6 {[%clk 0:00:53.1]} 39... Ne1+ {[%clk 0:00:49]} 40. Kf1 {[%clk 0:00:51.9]}
40... Ra1 {[%clk 0:00:49.3]} 41. Ke2 {[%clk 0:00:50.6]} 41... a3 {[%clk
0:00:49.1]} 42. Nc3 {[%clk 0:00:50.3]} 42... Nc2 {[%clk 0:00:47.1]} 43. Kd2
{[%clk 0:00:48.8]} 43... Nd4 {[%clk 0:00:44.9]} 44. Kd3 {[%clk 0:00:44.2]} 44...
Nf3 {[%clk 0:00:40.9]} 45. Ke3 {[%clk 0:00:42.6]} 45... Ne5 {[%clk 0:00:37.3]}
46. Kd4 {[%clk 0:00:37.8]} 46... Nd7 {[%clk 0:00:32]} 47. Ra7 {[%clk 0:00:33.2]}
47... Nf6 {[%clk 0:00:31.7]} 48. Kc4 {[%clk 0:00:29.5]} 48... Rf1 {[%clk
0:00:27.2]} 49. Rxa3 {[%clk 0:00:25.2]} 49... Rxf2 {[%clk 0:00:27.3]} 50. Nd5
{[%clk 0:00:22.4]} 50... Nd7 {[%clk 0:00:23.2]} 51. Kd4 {[%clk 0:00:20.5]} 51...
Rd2+ {[%clk 0:00:20.1]} 52. Ke4 {[%clk 0:00:19.9]} 52... Rh2 {[%clk 0:00:19.9]}
53. h4 {[%clk 0:00:19.3]} 53... Nc5+ {[%clk 0:00:20.2]} 54. Kf4 {[%clk
0:00:18.5]} 54... Ne6+ {[%clk 0:00:20]} 55. Kg4 {[%clk 0:00:18.4]} 55... Rd2
{[%clk 0:00:19.2]} 56. Nf4 {[%clk 0:00:17.7]} 56... Rd4 {[%clk 0:00:18.4]} 57.
Re3 {[%clk 0:00:16.6]} 57... Nc5 {[%clk 0:00:17.4]} 58. Re7 {[%clk 0:00:15.7]}
58... Ra4 {[%clk 0:00:15.7]} 59. Kf3 {[%clk 0:00:15.6]} 59... Ra3+ {[%clk
0:00:15.5]} 60. Kg2 {[%clk 0:00:15.7]} 60... Ra2+ {[%clk 0:00:15.5]} 61. Kh3
{[%clk 0:00:15.2]} 61... Ra4 {[%clk 0:00:15.5]} 62. Ne6 {[%clk 0:00:14.7]} 62...
Ne4 {[%clk 0:00:15.7]} 63. Rxg7+ {[%clk 0:00:13.5]} 63... Kh8 {[%clk 0:00:16.3]}
64. Rg6 {[%clk 0:00:13.8]} 64... h5 {[%clk 0:00:14.3]} 65. Rh6+ {[%clk 0:00:13]}
65... Kg8 {[%clk 0:00:15]} 66. Rxh5 {[%clk 0:00:13]} 66... Kf7 {[%clk
0:00:15.2]} 67. Ng5+ {[%clk 0:00:12.3]} 67... Kg6 {[%clk 0:00:15.4]} 68. Nxe4
{[%clk 0:00:10.5]} 68... Kxh5 {[%clk 0:00:15.1]} 69. Nf6+ {[%clk 0:00:10.3]}
69... Kg6 {[%clk 0:00:15.4]} 70. Ng4 {[%clk 0:00:10.3]} 70... Kf5 {[%clk
0:00:13]} 71. Ne3+ {[%clk 0:00:08.5]} 71... Ke4 {[%clk 0:00:12.9]} 72. Ng4
{[%clk 0:00:08.7]} 72... Kf3 {[%clk 0:00:12.5]} 73. Ne5+ {[%clk 0:00:07]} 73...
Kf2 {[%clk 0:00:12.6]} 74. h5 {[%clk 0:00:06.7]} 74... Ra3 {[%clk 0:00:11.7]}
75. Ng4+ {[%clk 0:00:06.8]} 75... Kf3 {[%clk 0:00:10.3]} 76. h6 {[%clk
0:00:07.1]} 76... Ra1 {[%clk 0:00:07.4]} 77. Kh4 {[%clk 0:00:05.9]} 77... Rh1+
{[%clk 0:00:05.6]} 78. Kg5 {[%clk 0:00:06]} 78... Kxg3 {[%clk 0:00:06.1]} 79.
Kg6 {[%clk 0:00:04.9]} 79... Kxg4 {[%clk 0:00:06]} 80. h7 {[%clk 0:00:05.3]}
80... Rh5 {[%clk 0:00:04.4]} 81. Kg7 {[%clk 0:00:05.3]} 81... Rg5+ {[%clk
0:00:04.3]} 82. Kf8 {[%clk 0:00:04.6]} 82... Rh5 {[%clk 0:00:04.3]} 83. Kg7
{[%clk 0:00:05]} 83... Rg5+ {[%clk 0:00:04.1]} 84. Kf7 {[%clk 0:00:05.4]} 84...
Rh5 {[%clk 0:00:04.3]} 85. Kg7 {[%clk 0:00:05.8]} 1/2-1/2

[Event "*** Titled Tuesday Blitz"]
[Site "Chess.com"]
[Date "2020.10.20"]
[Round "11"]
[White "TheCastleHunter"]
[Black "MatyChess1"]
[Result "0-1"]
[WhiteElo "2376"]
[BlackElo "2549"]
[TimeControl "180+1"]
[EndTime "12:10:45 PDT"]
[Termination "MatyChess1 won by checkmate"]

1. e4 {[%clk 0:03:00.9]} 1... c5 {[%clk 0:03:00.1]} 2. Nf3 {[%clk 0:03:00.8]}
2... g6 {[%clk 0:03:00.2]} 3. d4 {[%clk 0:03:00.3]} 3... cxd4 {[%clk 0:03:01.1]}
4. Nxd4 {[%clk 0:03:01.2]} 4... Nc6 {[%clk 0:03:00.9]} 5. Nc3 {[%clk 0:03:02.1]}
5... Bg7 {[%clk 0:03:00.7]} 6. Be3 {[%clk 0:03:02.3]} 6... Nf6 {[%clk
0:03:01.2]} 7. Be2 {[%clk 0:03:01.5]} 7... O-O {[%clk 0:03:01.7]} 8. O-O {[%clk
0:03:01.6]} 8... d5 {[%clk 0:03:02.3]} 9. exd5 {[%clk 0:03:02.3]} 9... Nxd5
{[%clk 0:03:02.1]} 10. Nxd5 {[%clk 0:03:03.2]} 10... Qxd5 {[%clk 0:03:01]} 11.
Bf3 {[%clk 0:03:03]} 11... Qc4 {[%clk 0:03:01.2]} 12. Nxc6 {[%clk 0:03:03.1]}
12... bxc6 {[%clk 0:03:00.6]} 13. c3 {[%clk 0:03:03.3]} 13... Bf5 {[%clk
0:02:53.4]} 14. Qb3 {[%clk 0:02:59.9]} 14... Qa6 {[%clk 0:02:33.8]} 15. Qd1
{[%clk 0:02:38.4]} 15... Rfd8 {[%clk 0:02:30]} 16. Qc1 {[%clk 0:02:38]} 16...
Rab8 {[%clk 0:02:28.6]} 17. Re1 {[%clk 0:02:33.5]} 17... e5 {[%clk 0:02:10.9]}
18. Bc5 {[%clk 0:02:11.8]} 18... Re8 {[%clk 0:01:49.5]} 19. Be4 {[%clk
0:01:41.6]} 19... Be6 {[%clk 0:01:45.2]} 20. a3 {[%clk 0:01:32.3]} 20... f5
{[%clk 0:01:44.4]} 21. Bf3 {[%clk 0:01:31.2]} 21... Bc4 {[%clk 0:01:37.1]} 22.
b4 {[%clk 0:01:23.9]} 22... e4 {[%clk 0:01:35.6]} 23. Bd1 {[%clk 0:01:22.8]}
23... Rbd8 {[%clk 0:01:34.4]} 24. h3 {[%clk 0:00:52.8]} 24... Rd3 {[%clk
0:01:33.1]} 25. Bd4 {[%clk 0:00:53]} 25... Bxd4 {[%clk 0:01:16.8]} 26. cxd4
{[%clk 0:00:53.9]} 26... Rxd4 {[%clk 0:01:17.7]} 27. Qc3 {[%clk 0:00:53.2]}
27... Red8 {[%clk 0:01:17]} 28. Bb3 {[%clk 0:00:52.9]} 28... Bxb3 {[%clk
0:01:10.6]} 29. Qxb3+ {[%clk 0:00:53.8]} 29... Qc4 {[%clk 0:01:11.2]} 30. Qg3
{[%clk 0:00:50.3]} 30... Qf7 {[%clk 0:00:54.7]} 31. Qe5 {[%clk 0:00:41.8]} 31...
R4d5 {[%clk 0:00:48]} 32. Qc3 {[%clk 0:00:40.1]} 32... R8d6 {[%clk 0:00:47.6]}
33. a4 {[%clk 0:00:31.5]} 33... Qf6 {[%clk 0:00:46.8]} 34. Qc4 {[%clk
0:00:29.6]} 34... Kg7 {[%clk 0:00:45.5]} 35. b5 {[%clk 0:00:29.4]} 35... Rd2
{[%clk 0:00:39.8]} 36. Qc5 {[%clk 0:00:20.4]} 36... Qd4 {[%clk 0:00:28.9]} 37.
Qxd4+ {[%clk 0:00:17.8]} 37... R2xd4 {[%clk 0:00:29.8]} 38. Rec1 {[%clk
0:00:17.2]} 38... cxb5 {[%clk 0:00:19.3]} 39. axb5 {[%clk 0:00:18.1]} 39... Rd7
{[%clk 0:00:20.1]} 40. Ra6 {[%clk 0:00:18.1]} 40... Rb4 {[%clk 0:00:16.6]} 41.
Rca1 {[%clk 0:00:18]} 41... Rxb5 {[%clk 0:00:16.3]} 42. Rxa7 {[%clk 0:00:18.6]}
42... Rxa7 {[%clk 0:00:17.2]} 43. Rxa7+ {[%clk 0:00:19.3]} 43... Kh6 {[%clk
0:00:17.5]} 44. Kh2 {[%clk 0:00:20]} 44... Rb3 {[%clk 0:00:17.3]} 45. Rc7 {[%clk
0:00:18.7]} 45... Rb2 {[%clk 0:00:17.2]} 46. Kg3 {[%clk 0:00:18.4]} 46... Rb3+
{[%clk 0:00:17.7]} 47. Kh2 {[%clk 0:00:17.6]} 47... Rd3 {[%clk 0:00:18.6]} 48.
Re7 {[%clk 0:00:17.3]} 48... Rd8 {[%clk 0:00:18.3]} 49. g3 {[%clk 0:00:17.3]}
49... Rd2 {[%clk 0:00:16.7]} 50. Kg2 {[%clk 0:00:17.8]} 50... Ra2 {[%clk
0:00:15.7]} 51. Re6 {[%clk 0:00:17.4]} 51... Ra7 {[%clk 0:00:13.7]} 52. Re5
{[%clk 0:00:17]} 52... Kg5 {[%clk 0:00:13.5]} 53. Re6 {[%clk 0:00:15.7]} 53...
Ra2 {[%clk 0:00:12.5]} 54. Re7 {[%clk 0:00:14.8]} 54... Kf6 {[%clk 0:00:12.6]}
55. Re8 {[%clk 0:00:14.3]} 55... h6 {[%clk 0:00:12.8]} 56. Kg1 {[%clk
0:00:13.5]} 56... Kg5 {[%clk 0:00:12.5]} 57. Kg2 {[%clk 0:00:13.4]} 57... Ra3
{[%clk 0:00:12.8]} 58. Re6 {[%clk 0:00:13.3]} 58... Kh5 {[%clk 0:00:12.2]} 59.
Rf6 {[%clk 0:00:12.2]} 59... Ra2 {[%clk 0:00:10.9]} 60. Re6 {[%clk 0:00:12.3]}
60... Kg5 {[%clk 0:00:11.4]} 61. Kg1 {[%clk 0:00:12.1]} 61... Rb2 {[%clk
0:00:10.5]} 62. Kg2 {[%clk 0:00:12.1]} 62... Kh5 {[%clk 0:00:10.8]} 63. Kg1
{[%clk 0:00:11.2]} 63... Rc2 {[%clk 0:00:09.5]} 64. Kg2 {[%clk 0:00:11.4]} 64...
Kg5 {[%clk 0:00:09.5]} 65. Kg1 {[%clk 0:00:08.9]} 65... h5 {[%clk 0:00:09.9]}
66. Kg2 {[%clk 0:00:07.4]} 66... h4 {[%clk 0:00:08.8]} 67. gxh4+ {[%clk
0:00:07.7]} 67... Kxh4 {[%clk 0:00:09.7]} 68. Rxg6 {[%clk 0:00:08.4]} 68... e3
{[%clk 0:00:10.2]} 69. Rf6 {[%clk 0:00:07.2]} 69... Rxf2+ {[%clk 0:00:09.6]} 70.
Kg1 {[%clk 0:00:07.6]} 70... Kxh3 {[%clk 0:00:10]} 71. Rh6+ {[%clk 0:00:07.6]}
71... Kg3 {[%clk 0:00:09.7]} 72. Rg6+ {[%clk 0:00:07.8]} 72... Kf3 {[%clk
0:00:10.2]} 73. Rf6 {[%clk 0:00:07.7]} 73... f4 {[%clk 0:00:11.1]} 74. Re6
{[%clk 0:00:07.8]} 74... Rg2+ {[%clk 0:00:11.6]} 75. Kf1 {[%clk 0:00:07.3]}
75... Ra2 {[%clk 0:00:12.5]} 76. Kg1 {[%clk 0:00:07.2]} 76... Ra1+ {[%clk
0:00:11.9]} 77. Kh2 {[%clk 0:00:08.1]} 77... Ra8 {[%clk 0:00:12.6]} 78. Kg1
{[%clk 0:00:08.1]} 78... Ra1+ {[%clk 0:00:12.2]} 79. Kh2 {[%clk 0:00:08.1]}
79... Kf2 {[%clk 0:00:13.1]} 80. Rf6 {[%clk 0:00:07.9]} 80... f3 {[%clk
0:00:13.4]} 81. Rb6 {[%clk 0:00:07.9]} 81... Ra8 {[%clk 0:00:13.1]} 82. Kh3
{[%clk 0:00:05.8]} 82... e2 {[%clk 0:00:11.8]} 83. Re6 {[%clk 0:00:05.2]} 83...
e1=Q {[%clk 0:00:11.4]} 84. Rxe1 {[%clk 0:00:06.1]} 84... Kxe1 {[%clk
0:00:12.3]} 85. Kg3 {[%clk 0:00:07]} 85... f2 {[%clk 0:00:13]} 86. Kf3 {[%clk
0:00:07.9]} 86... Rf8+ {[%clk 0:00:12.8]} 87. Ke3 {[%clk 0:00:08.8]} 87... f1=Q
{[%clk 0:00:12.9]} 88. Kd4 {[%clk 0:00:09.7]} 88... Qf3 {[%clk 0:00:12.9]} 89.
Ke5 {[%clk 0:00:10.6]} 89... Rf4 {[%clk 0:00:13.3]} 90. Kd6 {[%clk 0:00:11.5]}
90... Re4 {[%clk 0:00:14]} 91. Kc7 {[%clk 0:00:12.2]} 91... Qd3 {[%clk
0:00:14.8]} 92. Kc6 {[%clk 0:00:13.1]} 92... Rc4+ {[%clk 0:00:15.4]} 93. Kb6
{[%clk 0:00:14]} 93... Qb3+ {[%clk 0:00:16.1]} 94. Ka5 {[%clk 0:00:14.7]} 94...
Ra4# {[%clk 0:00:17]} 0-1